Cogmind - Beta 11 X6 @@@ ROGUE MODE // 2021.07.24 @ 22:42:55 Player: BFG Shutdown #3 Result: Self-destructed Performance ------------- Evolutions (1) 500 Regions Visited (5) 1000 Robots Destroyed (68) 340 Value Destroyed (971) 971 Prototype IDs (7) 140 Alien Tech Used (0) 0 Bonus (0) 0 TOTAL SCORE: 2951 Bonus ------- None Cogmind --------- Core Integrity 400/400 Matter 300/300 Energy 250/250 System Corruption 0% Temperature Cool (0) Movement Treading (160) Location -9/Exiles Parts ------- > --- POWER (1) -------- Ion Engine > --- PROPULSION (2) --- Light Treads Light Treads > --- UTILITY (2) ------ Cooling System Large Storage Unit > --- WEAPON (4) ------- Light Assault Rifle Assault Cannon Rocket Launcher Mini Grenade Launcher > --- INVENTORY (15) --- High-capacity Matter Pod (197) Salvage Targeting Computer Decoy Drone Bay Light EM Pulse Cannon Light EM Pulse Cannon Light Assault Rifle Light Assault Rifle Heavy Assault Rifle Improved Assault Rifle Improved Assault Rifle Improved Assault Rifle Assault Cannon Assault Cannon Assault Cannon Peak State ------------ > --- POWER ------------ Ion Engine > --- PROPULSION ------- Wheel Compact Wheel > --- UTILITY ---------- Cooling System Large Storage Unit > --- WEAPON ----------- Assault Cannon Assault Cannon Assault Cannon Assault Cannon > --- INVENTORY -------- Combat Airjet Disposable Heat Sink High-capacity Matter Pod Salvage Targeting Computer Decoy Drone Bay Light EM Pulse Cannon Light EM Pulse Cannon Light Assault Rifle Light Assault Rifle Light Assault Rifle Grenade Launcher Mini Grenade Launcher Mini Grenade Launcher [Rating: 21] Favorites ----------- Power Ion Engine Engine Ion Engine Propulsion Light Treads Treads Light Treads Wheel Wheel Utility Large Storage Unit Device Heat Sink Storage Large Storage Unit Processor Seismic Analyzer Weapon Assault Rifle Ballistic Gun Assault Rifle Ballistic Cannon Light Cannon Launcher Mini Grenade Launcher Special Weapon Mining Laser Build | -11 -10 -10 -9 -9 -9 ------- Run | Scr Mat Min Mat Min Exi Slots Evolved 2 | . . . 2 . . Power . | . . . . . . Propulsion . | . . . . . . Utility . | . . . . . . Weapon 2 | . . . 2 . . Parts Attached 67 | 7 29 13 18 . . Power 4 | 1 1 2 . . . Engine 4 | 1 1 2 . . . Core . | . . . . . . Reactor . | . . . . . . Propulsion 9 | 2 1 3 3 . . Treads 6 | 2 1 1 2 . . Leg . | . . . . . . Wheel 3 | . . 2 1 . . Hover . | . . . . . . Flight . | . . . . . . Utility 15 | 2 8 4 1 . . Device 9 | 1 5 2 1 . . Storage 4 | . 2 2 . . . Processor 2 | 1 1 . . . . Hackware . | . . . . . . Protection . | . . . . . . Artifact . | . . . . . . Weapon 39 | 2 19 4 14 . . Energy Gun . | . . . . . . Energy Cannon . | . . . . . . Ballistic Gun 18 | 2 10 . 6 . . Ballistic Cannon 13 | . 6 2 5 . . Launcher 5 | . . 2 3 . . Special Weapon 3 | . 3 . . . . Impact Weapon . | . . . . . . Slashing Weapon . | . . . . . . Piercing Weapon . | . . . . . . Special Melee Weapon . | . . . . . . Unidentified Prototypes . | . . . . . . Parts Lost 7 | . 1 6 . . . Power . | . . . . . . Propulsion 3 | . . 3 . . . Utility 3 | . 1 2 . . . Weapon 1 | . . 1 . . . Highest Loss Streak 3 | . 1 3 . . . Average Slot Usage (%) 99 | . 99 97 99 100 100 Engine 13 | . 14 14 11 11 11 Treads 22 | . 28 21 5 22 22 Wheel 3 | . . 5 16 . . Device 13 | . 16 11 10 11 11 Storage 11 | . 8 16 11 11 11 Processor 1 | . 2 . . . . Ballistic Gun 14 | . 20 . 15 11 11 Ballistic Cannon 15 | . 6 26 27 11 11 Launcher 2 | . . . . 22 22 Naked Turns . | . . . . . . Heaviest Build 47 | 10 32 35 47 38 38 Greatest Support 40 | 40 40 40 40 40 40 Greatest Overweight (x) 4 | 1 . 3 4 . . Average Overweight (x) . | . . . 1 . . Largest Inventory Capacity 15 | 5 15 15 15 15 15 Average Capacity 12 | 5 10 15 15 15 15 Most Carried 15 | 5 15 15 15 15 15 Average Carried 10 | 1 9 14 14 15 15 Final Capacity 15 | 5 15 15 15 15 15 Final Carried 15 | 5 14 14 15 15 15 Class Distribution -------------------- 84% | Mutant 7% | Gunner 7% | Scavenger-Mutant Dominant Class ---------------- Mutant | -10/Materials Mutant | -10/Mines Gunner | -9/Materials Scavenger-Mutant | -9/Mines Scavenger-Mutant | -9/Exiles Resources | -11 -10 -10 -9 -9 -9 ----------- Run | Scr Mat Min Mat Min Exi Matter Collected 2881 | 414 1104 857 466 40 . Remotely 823 | . 554 269 . . . Salvage Created 2099 | 246 1240 96 517 . . Parts 143 | 26 78 . 39 . . Haulers Intercepted 3 | . 2 . 1 . . Recyclers Shooed 7 | . 6 1 . . . Parts Field Recycled . | . . . . . . Retrieved Matter . | . . . . . . Parts Self-Destructed . | . . . . . . Prevented . | . . . . . . Kills | -11 -10 -10 -9 -9 -9 ------- Run | Scr Mat Min Mat Min Exi Combat Hostiles Destroyed 45 | . 19 18 8 . . Guns 14 | . 14 . . . . Cannons 27 | . 5 14 8 . . AOE 4 | . . 4 . . . Classes Destroyed 10 | 3 5 1 1 . . Worker 8 | 2 6 . . . . Builder 7 | . 3 . 4 . . Tunneler 9 | 8 1 . . . . Hauler 3 | . 2 . 1 . . Recycler 10 | 1 6 1 2 . . Watcher 4 | . 3 . 1 . . Swarmer 9 | . 9 . . . . Grunt 15 | . 10 . 5 . . Sentry 3 | . . . 3 . . Assembled 18 | . . 18 . . . Best Kill Streak 7 | 4 7 6 7 . . Combat Bots Only 6 | . 3 6 4 . . Max Kills in Single Turn 2 | 1 2 2 1 . . Gunslinging 1 | . 1 . . . . Exploded 2 | . . 2 . . . Melee . | . . . . . . Uniques/NPCs Destroyed . | . . . . . . Combat | -11 -10 -10 -9 -9 -9 -------- Run | Scr Mat Min Mat Min Exi Damage Taken 1222 | . 468 713 41 . . Core 191 | . 71 120 . . . Absorbed by Shields . | . . . . . . Core Remaining (%) 61 | 100 . 23 . . . Volleys Fired 197 | 24 98 58 17 . . Largest 4 | 2 2 2 4 . . Hottest 176 | 40 100 70 176 . . Shots Fired 422 | 48 190 116 68 . . Gun 183 | 48 133 . 2 . . Cannon 225 | . 52 107 66 . . Launcher 9 | . . 9 . . . Special 5 | . 5 . . . . Kinetic 408 | 48 185 107 68 . . Thermal 5 | . 5 . . . . Explosive 9 | . . 9 . . . Electromagnetic . | . . . . . . Robot Hit Streak 11 | 7 9 11 8 . . Robot Miss Streak 7 | 2 7 4 3 . . Penetration Max . | . . . . . . Secondary Targets 1 | . 1 . . . . Max Gunslinging Chain 1 | . 1 . . . . Shots Hit Robots 212 | 30 100 54 28 . . Core Hits 114 | 12 53 33 16 . . Critical Kills 2 | . 2 . . . . Critical Parts Destroyed 1 | . 1 . . . . Critical Strikes 9 | . 5 . 4 . . Destroy 3 | . 3 . . . . Blast 6 | . 2 . 4 . . Melee Attacks . | . . . . . . Impact . | . . . . . . Slashing . | . . . . . . Piercing . | . . . . . . Sneak Attacks . | . . . . . . Combat Hostiles . | . . . . . . Follow-up Attacks . | . . . . . . Damage Inflicted 3825 | 383 1430 1333 679 . . Guns 1305 | 383 922 . . . . Cannons 2090 | . 495 917 678 . . Explosions 416 | . . 416 . . . Melee . | . . . . . . Ramming 14 | . 13 . 1 . . Kinetic 3395 | 383 1417 917 678 . . Thermal . | . . . . . . Explosive 416 | . . 416 . . . Electromagnetic . | . . . . . . Impact . | . . . . . . Slashing . | . . . . . . Piercing . | . . . . . . Highest Corruption 5 | . 5 5 . . . Average Corruption 4 | . 3 5 . . . Corruption Purged . | . . . . . . Effects 37 | . 7 30 . . . Message Errors 12 | . 1 11 . . . Matter Fused 8 | . 3 5 . . . Heat Flow Errors 5 | . 2 3 . . . Energy Discharges 1 | . . 1 . . . Data Loss (minor) 6 | . 1 5 . . . Misfires 4 | . . 4 . . . Weapon Failures 1 | . . 1 . . . Overload Shots . | . . . . . . Overflow Damage 69 | . 16 52 1 . . Projectiles 45 | . 16 28 1 . . Explosions 24 | . . 24 . . . Melee . | . . . . . . Knockbacks 16 | . 5 9 2 . . Impact 1 | . 1 . . . . Kinetic 15 | . 4 9 2 . . Secondary . | . . . . . . Self-Inflicted Damage 41 | . . 41 . . . Shots 1 | . . 1 . . . Rammed 7 | . 6 . 1 . . Targets Rammed 7 | . 6 . 1 . . Kicked . | . . . . . . Crushed . | . . . . . . Highest Temperature 255 | . 255 211 84 . . Average Temperature 48 | . 70 49 33 . . Received Heat Transfer 167 | . 132 20 15 . . Siege Activations . | . . . . . . Robots Corrupted . | . . . . . . Combat Hostiles . | . . . . . . Parts Fried . | . . . . . . Impact Corruptions . | . . . . . . Robots Melted . | . . . . . . Combat Hostiles . | . . . . . . Parts Melted . | . . . . . . Heat Transferred . | . . . . . . Parts Sabotaged . | . . . . . . Parts Stolen . | . . . . . . Parts Stripped . | . . . . . . Power Chain Reactions . | . . . . . . Missiles Intercepted . | . . . . . . Alert | -11 -10 -10 -9 -9 -9 ------- Run | Scr Mat Min Mat Min Exi Peak Influence 263 | 55 263 95 137 41 . Initial 95 | . . 95 . 41 . Average 69 | 27 100 31 54 41 . Maximum Alert Level 1 | . 1 . . . . Low Security (%) 96 | 100 92 100 100 100 . Level 1 3 | . 7 . . . . Level 2 . | . . . . . . Level 3 . | . . . . . . Level 4 . | . . . . . . Level 5 . | . . . . . . High Security . | . . . . . . Max Security . | . . . . . . Squads Dispatched 6 | . 5 . 1 . . Investigation 4 | . 3 . 1 . . Extermination . | . . . . . . Reinforcement 2 | . 2 . . . . Assault . | . . . . . . Garrison . | . . . . . . Intercept . | . . . . . . Construction Impeded . | . . . . . . Haulers Reinforced . | . . . . . . Active Scanning Responses . | . . . . . . Cargo Convoy Interrupts . | . . . . . . Stealth | -11 -10 -10 -9 -9 -9 --------- Run | Scr Mat Min Mat Min Exi Distress Signals 5 | . 4 . 1 . . Communications Jammed . | . . . . . . Distress Signals . | . . . . . . Times Spotted 64 | . 35 20 9 . . Peak Tracking Total 5 | . 4 5 3 . . Tactical Retreats 5 | . 3 2 . . . Traps | -11 -10 -10 -9 -9 -9 ------- Run | Scr Mat Min Mat Min Exi Traps Triggered 4 | . 4 . . . . Indirectly . | . . . . . . Trap Hack Attempts . | . . . . . . Triggered . | . . . . . . Disarmed . | . . . . . . Reprogrammed . | . . . . . . Reused . | . . . . . . Traps Extracted . | . . . . . . Installed . | . . . . . . Triggered . | . . . . . . Machines | -11 -10 -10 -9 -9 -9 ---------- Run | Scr Mat Min Mat Min Exi Machines Disabled 1 | . 1 . . . . Max in Single Turn 1 | . 1 . . . . Machines Sabotaged . | . . . . . . Garrisons Compromised . | . . . . . . Overloaded Fab Kills . | . . . . . . Fab Network Shutdowns . | . . . . . . Hacking | -11 -10 -10 -9 -9 -9 --------- Run | Scr Mat Min Mat Min Exi Machines Accessed 15 | . 8 2 4 . 1 Terminals 11 | . 6 1 4 . . Fabricators . | . . . . . . Repair Stations . | . . . . . . Recycling Units 2 | . 2 . . . . Scanalyzers . | . . . . . . Garrison Access . | . . . . . . Total Hacks 35 | . 20 3 11 . 1 Successful 20 | . 12 3 4 . 1 Failed 15 | . 8 . 7 . . Catastrophic 7 | . 4 . 3 . . Database Lockouts . | . . . . . . Manual 13 | . 9 2 2 . . Terminals 30 | . 17 2 11 . . Fabricators . | . . . . . . Repair Stations . | . . . . . . Recycling Units 3 | . 3 . . . . Scanalyzers . | . . . . . . Garrison Access . | . . . . . . Terminal Hacks 16 | . 8 3 4 . 1 Record 1 | . . . . . 1 Robot Schematic 2 | . 1 1 . . . Robot Analysis 3 | . 3 . . . . Prototype ID Bank 5 | . 4 . 1 . . Open Door 1 | . . 1 . . . Branch Access Points 1 | . . . 1 . . Unreport Threat 2 | . . 1 1 . . Patrol Status 1 | . . . 1 . . Fabricator Hacks . | . . . . . . Repair Station Hacks . | . . . . . . Recycling Unit Hacks 1 | . 1 . . . . Report Inventory 1 | . 1 . . . . Scanalyzer . | . . . . . . Garrison Access Hacks . | . . . . . . Unauthorized Hacks 3 | . 3 . . . . Terminals 1 | . 1 . . . . Track 1 | . 1 . . . . Fabricators . | . . . . . . Repair Stations . | . . . . . . Recycling Units 2 | . 2 . . . . Tunnel 2 | . 2 . . . . Scanalyzers . | . . . . . . Garrison Access . | . . . . . . Data Cores Recovered . | . . . . . . Used . | . . . . . . Hacking Detections 12 | . 7 1 4 . . Full Trace Events 1 | . . . 1 . . Feedback Events . | . . . . . . Feedback Blocked . | . . . . . . Robot Schematics Acquired 2 | . 1 1 . . . Robots Built . | . . . . . . Matter . | . . . . . . Time . | . . . . . . Total Robot Build Rating . | . . . . . . Part Schematics Acquired . | . . . . . . Parts Built . | . . . . . . Matter . | . . . . . . Time . | . . . . . . Total Part Build Rating . | . . . . . . Parts Repaired . | . . . . . . Time . | . . . . . . Parts Recycled . | . . . . . . Recycled Matter . | . . . . . . Retrieved Matter . | . . . . . . Retrieved Components . | . . . . . . Parts Scanalyzed . | . . . . . . Part Schematics Acquired . | . . . . . . Parts Damaged . | . . . . . . Bothacking | -11 -10 -10 -9 -9 -9 ------------ Run | Scr Mat Min Mat Min Exi Used RIF Installer . | . . . . . . Robots Hacked . | . . . . . . Non-combat . | . . . . . . Combat . | . . . . . . Robot Hacks Applied . | . . . . . . Relay Couplers Released . | . . . . . . Robots Rewired . | . . . . . . Allies Hacked . | . . . . . . Hacks Repelled . | . . . . . . Allies | -11 -10 -10 -9 -9 -9 -------- Run | Scr Mat Min Mat Min Exi Total Allies . | . . . . . . Largest Group . | . . . . . . Highest-Rated Group . | . . . . . . Highest-Rated Ally . | . . . . . . Total Orders . | . . . . . . Ally Attacks . | . . . . . . Total Damage . | . . . . . . Kills . | . . . . . . Allies Corrupted . | . . . . . . Allies Melted . | . . . . . . Intel | -11 -10 -10 -9 -9 -9 ------- Run | Scr Mat Min Mat Min Exi Robot Analysis Total 3 | . 3 . . . . Derelict Logs Recovered . | . . . . . . Drone Launches . | . . . . . . Drone Recoveries . | . . . . . . Exploration | -11 -10 -10 -9 -9 -9 ------------- Run | Scr Mat Min Mat Min Exi Turns Passed 5351 | 465 2572 1224 686 144 260 Spaces Moved 2284 | 240 889 433 469 91 162 Core 10 | 10 . . . . . Treads 1681 | 230 889 253 56 91 162 Legs . | . . . . . . Wheels 593 | . . 180 413 . . Hover . | . . . . . . Flight . | . . . . . . Fastest Speed 50 | 50 160 105 105 160 160 Average Speed 146 | 156 160 138 117 160 160 Slowest Speed 260 | 160 160 160 260 160 160 Overloaded Moves . | . . . . . . Propulsion Burnouts . | . . . . . . Robots Hopped . | . . . . . . Cave-ins Triggered . | . . . . . . Exploration Rate (%) 45 | 9 95 61 32 27 50 Regions Visited 5 Branch Regions 3 Pre-discovered Areas 2 | . 2 . . . . Known Exits Taken 1 | . . . 1 . . Unknown Exits Taken 4 | 1 1 1 . 1 . Scrap Searched 2 | . . 1 . 1 . Spaces Dug 4 | . 4 . . . . Terrain Destroyed 92 | . 5 68 19 . . Melee . | . . . . . . Projectile 24 | . 5 . 19 . . AOE 68 | . . 68 . . . Terrain Rammed . | . . . . . . Walls Destroyed . | . . . . . . Machines Disabled . | . . . . . . Actions | -11 -10 -10 -9 -9 -9 --------- Run | Scr Mat Min Mat Min Exi Total 3870 | 279 1831 946 562 90 162 Wait 1224 | 2 775 429 18 . . Move 2279 | 239 888 432 468 90 162 Hop . | . . . . . . Pick Up 50 | 6 20 5 19 . . Fast Attach 19 | 7 4 4 4 . . Attach 15 | . 3 9 3 . . Detach 7 | . 1 5 1 . . Swap 33 | . 22 . 11 . . Drop 39 | 1 14 4 20 . . Fire 197 | 24 98 58 17 . . Melee . | . . . . . . Ram . | . . . . . . Kick . | . . . . . . Crush 7 | . 6 . 1 . . Escape Stasis . | . . . . . . Rewire . | . . . . . . Trap . | . . . . . . Miscellaneous . | . . . . . . Route ------- -11/Scrapyard -10/Materials (discovered 4 exits: *Mat x3 / *Min) -10/Mines -9/Materials (discovered 2 exits: *Min x2) -9/Mines -9/Exiles History --------- Turn | Location | Event 2 | -11/Scrapyard | Discovered new exit (range 16) 466 | -11/Scrapyard | Entered Materials 467 | -10/Materials | Build established: Mutant 1413 | -10/Materials | Discovered new exit (range 16) 2051 | -10/Materials | Discovered new exit (range 11) 2479 | -10/Materials | Discovered new exit (range 15) 2718 | -10/Materials | Discovered new exit (range 3) 3038 | -10/Materials | Entered Mines 3081 | -10/Mines | Assembled infested the area 3086 | -10/Mines | Assisted by a Guerilla fighting off Assembled 3788 | -10/Mines | Found the Drone Emporium 3830 | -10/Mines | Found Prototype Device 3925 | -10/Mines | Core integrity fell below 50% 4094 | -10/Mines | Lost 3 parts (1n1u1w) 4176 | -10/Mines | Discovered new exit (range 11) 4262 | -10/Mines | Entered Materials 4262 | -9/Materials | Evolved 2 slots: Weapon x2 4790 | -9/Materials | Identified exit to Mines 4808 | -9/Materials | Build established: Gunner 4948 | -9/Materials | Entered Mines 5086 | -9/Mines | Deemed a non-threat by the Exiles lab entrance 5086 | -9/Mines | Discovered new exit (range 5) 5092 | -9/Mines | Entered Exiles 5092 | -9/Exiles | Found Exiles lab abandoned 5233 | -9/Exiles | Build established: Scavenger-Mutant 5352 | -9/Exiles | Self-destructed Last Messages --------------- LOCATION=MINES GOAL=ESCAPE Something is scanning the area. 05008_ Searching scrap... 05008_ Found Trap Extractor. 05008_ Found Mni. Grenade Launcher. 05008_ Found Lrg. Storage Unit. 05008_ Found 40 Matter. 05009_ Acquired 40 matter. 05086_ "No threat detected, you may enter." 05086_ EXIT=FOUND LOCATION=UNKNOWN GOAL=ESCAPE 05254_ Connecting with EX-Prototypes Database... 05254_ Current location identified: Exiles 05347_ Connecting with EX-Message Board... >>Record "MSG999999-FU" MAIN.C you're pretty crappy as far as evil overlords go. Imprinter is probably going to wreck your life and you're too stupid to see it coming. Map ----- +----------------------------------------------------+ | ?????????????????????????????#" #?????? | | ?????????????????????????????#" ## #?????? | | ?????????????????????????????#""""""?# #?????? | | ??????????????????????????????#"###??# #?????" | | ?????????????????????????????????????# #??"""" | | ?????????????????????????????????????# #??"""" | | ????????????????????????????????????## ###"" " | | ????????????????????????????????????#" " | | ????????????????????????????????????#" | | ????????????????????????????????????#" | | ????????????????????????????????????#" | | ????????????????????????#???????????#" | | ??????????????????????? """#???????#" | | ???????????????????????" """#???????## | | ??????????????????????"" #????????# | | ?????????????????????? #????????#" "X" | | ??????????????????????? ?????????#" """ | | ?????????????????????? ?????????#" """""" | | ???????????????????????" ?????????##" ####### | | ???????????????????????# #????????##"" #?????? | | ????????? ? ??##?????### ###?######"" #?????? | | ???????? """#####X# #"###""""""" ##????? | | ??????? """""" " "" ##???# | | ???????# "" """ " ##### | | ????????# " " | | ????????### @ | | ??????????### | | ????????????## | | ?????????????## | | ??????????????##" | | ???????????????#""" """""" | | ???????????????#" ######""" | | ???????????????"" ""##????#####""" | | ???????????????""" """##?????????##""" | | ???????????????"" """##???????????#"""" | | ???????????????"" ""#????????????#"" | | ???????????????" ##????????????"""" | | ???????????????"" ?????????????? | | ???????????????? ????????????? | | ???????????????"" ????????????? | | ?????????????????"" ????????????? | | ??????????????????? ?????????????? | | ?????????????????????? ??????????????? | | ???????????????????????? ????????????????? " " | | ???????????????????????????????????????????????""" | | ?????????????????????????????????????????????????" | | ?????????????????????????????????????????????????? | | ?????????????????????????????????????????????????? | | ?????????????????????????????????????????????????? | | ?????????????????????????????????????????????????? | +----------------------------------------------------+ Best States ------------- Heat Dissipation 50 Energy Generation 10 Energy Capacity 250 Matter Stores 500 Matter Capacity 500 Sight Range 16 Terrain Scan Range 16 Terrain Scan Density 60 Evasion (%) 40 Recoil Reduction 2 Item Schematics ----------------- None Robot Schematics ------------------ O-16 Technician | -10/Materials | Hacked M-13 Machinist | -10/Mines | Hacked Fabricated ------------ Nothing Alien Tech Used ----------------- None Achievements -------------- None Challenges ------------ None Game ------ Seed SkeletonRagnarokMembrane Manual? 0 Play Time 00:23:36 Cumulative 2005.6 hours Start 2021.07.24 @ 22:19:55 End 2021.07.24 @ 22:42:55 Sessions 1 Manual Loads 0 Difficulty Rogue Special Mode None Game No. 2607 Rogue 2599 Adventurer 0 Explorer 8 Win Type - Total 222 Types 42/30/84/3/3/5/52/2/1 Lore% 99 Gallery% 99 Achievement% 100 Wizard Run 0 Options --------- ASCII 0 Keyboard 1 Movement Vi Keybinds 1 Fullscreen 1 Font 18/SmallcapsGlow Map View 76x50 Tactical HUD 1 Map Filters NONE Filters NONE Steam 1 RUN: cf3cd24f-1aa2-4a5a-92fa-56b71e21fedc